Cogmind - Beta 16.1 @@@ ROGUE MODE // 2026.04.19 @ 17:37:49 Player: obl-vn Result: Self-destructed Performance ------------- Evolutions (1) 500 Regions Visited (6) 1200 Robots Destroyed (59) 295 Value Destroyed (1309) 1309 Prototype IDs (24) 480 Alien Tech Used (0) 0 Bonus (1254) 1254 TOTAL SCORE: 5038 Bonus ------- Follower Combat Kills 963 Aligned with FarCom 300 Friendly Fire -9 Cogmind --------- Core Integrity 329/400 Matter 300/300 Energy 250/250 System Corruption 0% Temperature Cool (0) Movement Treading (160) Location -8/Mines Parts ------- > --- POWER (1) -------- Ion Engine > --- PROPULSION (3) --- Light Treads Light Treads Light Treads > --- UTILITY (3) ------ High-capacity Storage Unit Medium Armor Plating Shield Generator > --- WEAPON (2) ------- Grenade Launcher Ripper > --- INVENTORY (20) --- Reinforced Ion Engine Reinforced Fission Core Light Treads Light Treads Light Treads Light Treads Makeshift ECM Suite Light Armor Plating Medium Armor Plating Medium Armor Plating EM Disruption Field High-powered Tractor Beam Improved Trap Extractor (2/6 Heavy EX) Heavy Assault Rifle Heavy Assault Rifle Improved Assault Rifle Improved Assault Rifle Improved Assault Rifle Improved Assault Rifle EMP Blaster Peak State ------------ > --- POWER ------------ Improved Ion Engine > --- PROPULSION ------- Light Treads Light Treads Light Treads > --- UTILITY ---------- Improved Heat Sink High-capacity Storage Unit Advanced Visual Processing Unit > --- WEAPON ----------- Flak Cannon Flak Cannon > --- INVENTORY -------- Ion Engine Light Treads Heat Sink Large Storage Unit High-capacity Matter Pod High-powered Tractor Beam Assault Rifle Assault Rifle Light Assault Rifle Light Assault Rifle Light Assault Rifle Light Assault Rifle Heavy Assault Rifle Light Cannon Flak Cannon Flak Cannon EMP Blaster Grenade Launcher Grenade Launcher Ripper [Rating: 21] Favorites ----------- Power Light Ion Engine Engine Light Ion Engine Propulsion Light Treads Treads Light Treads Utility High-capacity Storage Unit Device Improved Heat Sink Storage High-capacity Storage Unit Processor Advanced Visual Processing Unit Protection Medium Armor Plating Weapon Heavy Assault Rifle Energy Gun Medium Laser Energy Cannon Beam Cannon Ballistic Gun Heavy Assault Rifle Ballistic Cannon Flak Cannon Launcher Grenade Launcher Slashing Weapon Ripper Build | -11 -10 -10 -9 -9 -9 -8 ------- Run | Yrd Mat Min Mat Min Exi Min Slots Evolved 2 | . . . 2 . . . Power . | . . . . . . . Propulsion 1 | . . . 1 . . . Utility 1 | . . . 1 . . . Weapon . | . . . . . . . Parts Attached 42 | 6 7 2 15 8 4 . Power 5 | 1 . . 1 3 . . Engine 5 | 1 . . 1 3 . . Core . | . . . . . . . Reactor . | . . . . . . . Propulsion 6 | 2 . . 2 1 1 . Treads 6 | 2 . . 2 1 1 . Leg . | . . . . . . . Wheel . | . . . . . . . Hover . | . . . . . . . Flight . | . . . . . . . Utility 13 | 1 4 . 2 4 2 . Device 5 | . 2 . . 2 1 . Storage 3 | 1 1 . 1 . . . Processor 2 | . 1 . 1 . . . Hackware . | . . . . . . . Protection 3 | . . . . 2 1 . Artifact . | . . . . . . . Weapon 18 | 2 3 2 10 . 1 . Energy Gun 1 | 1 . . . . . . Energy Cannon 1 | . 1 . . . . . Ballistic Gun 9 | 1 . 2 6 . . . Ballistic Cannon 5 | . 1 . 4 . . . Launcher 1 | . 1 . . . . . Special Weapon . | . . . . . . . Impact Weapon . | . . . . . . . Slashing Weapon 1 | . . . . . 1 . Piercing Weapon . | . . . . . . . Special Melee Weapon . | . . . . . . . Unidentified Prototypes 1 | . . . 1 . . . Parts Lost 3 | . 1 2 . . . . Power . | . . . . . . . Propulsion . | . . . . . . . Utility 1 | . 1 . . . . . Weapon 2 | . . 2 . . . . Highest Loss Streak 2 | . 1 2 . . . . To Critical Strikes . | . . . . . . . Average Backups 14 | 1 10 13 19 18 11 20 Power . | . . 1 1 1 . 2 Propulsion 1 | . . 1 2 4 2 4 Utility 3 | . 2 3 4 5 4 7 Weapon 7 | . 7 8 12 7 4 7 Tool/Special . | . . . . . . . Unused Backups 15 | . . . 4 1 . 10 Power 1 | . . . . . . 1 Propulsion 2 | . . . . . . 2 Utility 5 | . . . 1 1 . 3 Weapon 7 | . . . 3 . . 4 Tool/Special . | . . . . . . . Average Slot Usage (%) 98 | . 97 100 99 100 97 100 Engine 12 | . 14 14 11 11 11 11 Treads 30 | . 27 28 32 33 33 33 Device 10 | . 7 14 11 11 11 11 Storage 11 | . 14 14 11 11 6 11 Processor 3 | . 4 . 10 . . . Protection 5 | . . . . 10 15 11 Energy Gun 4 | . 13 2 . . . . Energy Cannon 2 | . 7 2 . . . . Ballistic Gun 11 | . 5 22 12 22 3 . Ballistic Cannon 1 | . . . 9 . . . Launcher 2 | . . . . . 8 11 Slashing Weapon 2 | . . . . . 8 11 Peak Build Rating 21 | 6 10 10 21 19 18 18 Average Rating 13 | 3 7 9 19 17 16 18 On Entrance 11 | . 6 10 10 19 18 18 Avg Prop Armor Cover (%) . | . . . . . . . Naked Turns . | . . . . . . . Heaviest Build 61 | 12 30 29 60 61 60 . Greatest Support 60 | 40 40 40 60 60 60 . Greatest Overweight (x) 1 | . . . . 1 . . Average Overweight (x) . | . . . . . . . Largest Inventory Capacity 20 | 8 15 15 20 20 20 20 Average Capacity 16 | 6 14 15 19 20 14 20 Most Carried 20 | 5 15 15 20 20 20 20 Average Carried 14 | 1 10 13 19 19 12 20 Final Capacity 20 | 8 15 15 20 20 20 20 Final Carried 20 | . 15 14 19 18 20 20 Class Distribution -------------------- 52% | Scavenger-Mutant 47% | Mutant Dominant Class ---------------- Mutant | -10/Materials Mutant | -10/Mines Scavenger-Mutant | -9/Materials Scavenger-Mutant | -9/Mines Scavenger-Mutant | -9/Exiles Scavenger-Mutant | -8/Mines Resources | -11 -10 -10 -9 -9 -9 -8 ----------- Run | Yrd Mat Min Mat Min Exi Min Matter Collected 1777 | 197 446 71 780 213 70 . Remotely 70 | . . . . 70 . . Salvage Created 1814 | . 762 111 600 341 . . Parts 116 | . 44 14 38 20 . . Haulers Intercepted 5 | . 2 . 3 . . . Recyclers Shooed 3 | . 1 . 2 . . . Parts Field Recycled . | . . . . . . . Retrieved Matter . | . . . . . . . Parts Self-Destructed . | . . . . . . . Prevented . | . . . . . . . Parts Restored . | . . . . . . . Kills | -11 -10 -10 -9 -9 -9 -8 ------- Run | Yrd Mat Min Mat Min Exi Min Combat Hostiles Destroyed 40 | . 15 7 12 6 . . Guns 18 | . 5 5 2 6 . . Cannons 19 | . 9 . 10 . . . AOE 2 | . . 2 . . . . Classes Destroyed 11 | . 7 . 3 1 . . Worker 3 | . 2 . . 1 . . Builder 2 | . 1 . . 1 . . Tunneler 2 | . . . 1 1 . . Hauler 5 | . 2 . 3 . . . Recycler 1 | . . . 1 . . . Operator 3 | . . . 3 . . . Watcher 3 | . 3 . . . . . Swarmer 12 | . 3 6 3 . . . Grunt 25 | . 11 1 9 4 . . Brawler 2 | . . . . 2 . . Subdweller 1 | . 1 . . . . . Best Kill Streak 5 | . 3 3 5 5 . . Combat Bots Only 4 | . 3 3 4 3 . . Max Kills in Single Turn 2 | . 1 2 1 1 . . Gunslinging . | . . . . . . . Exploded 2 | . . 2 . . . . Melee . | . . . . . . . Uniques/NPCs Destroyed 1 | . . . . . 1 . 8R-AWN (-9/Exiles) Combat | -11 -10 -10 -9 -9 -9 -8 -------- Run | Yrd Mat Min Mat Min Exi Min Hostile Shots Fired 149 | . 60 15 48 16 10 . Missed 43 | . 14 5 18 5 1 . Hits 106 | . 46 10 30 11 9 . Melee 5 | . . . . 5 . . Projectile 101 | . 46 10 30 6 9 . Critical Strikes 8 | . 2 . . 1 5 . Damage Taken 1352 | . 586 101 356 197 112 . Core 136 | . 48 17 50 21 . . Absorbed by Shields 42 | . . . . . 42 . Regen/Repaired (Parts) 305 | . 105 . 200 . . . Core Remaining (%) 87 | 100 . 74 . . . . Volleys Fired 160 | . 66 14 61 18 1 . Largest 2 | . 2 2 2 2 1 . Hottest 110 | . 110 110 74 46 30 . Shots Fired 310 | . 130 25 118 36 1 . Gun 210 | . 91 21 62 36 . . Cannon 96 | . 37 3 56 . . . Launcher 4 | . 2 1 . . 1 . Special . | . . . . . . . Kinetic 200 | . 28 18 118 36 . . Thermal 106 | . 100 6 . . . . Explosive 4 | . 2 1 . . 1 . Electromagnetic . | . . . . . . . Robot Hit Streak 15 | . 15 9 9 7 3 . Robot Miss Streak 10 | . 6 3 10 2 . . Penetration Max . | . . . . . . . Secondary Targets 1 | . . 1 . . . . Max Gunslinging Chain 1 | . . 1 . . . . Shots Hit Robots 221 | . 86 14 92 23 6 . Core Hits 118 | . 30 9 64 12 3 . Critical Kills . | . . . . . . . Critical Parts Destroyed . | . . . . . . . Critical Strikes 7 | . 6 . . . 1 . Burn 6 | . 6 . . . . . Sever 1 | . . . . . 1 . Melee Attacks 5 | . . . . . 5 . Impact . | . . . . . . . Slashing 5 | . . . . . 5 . Piercing . | . . . . . . . Sneak Attacks . | . . . . . . . Combat Hostiles . | . . . . . . . Follow-up Attacks . | . . . . . . . Damage Inflicted 3493 | . 1349 234 1366 387 157 . Guns 1846 | . 779 123 577 367 . . Cannons 1284 | . 496 . 788 . . . Explosions 174 | . 60 111 . . 3 . Melee 154 | . . . . . 154 . Ramming 35 | . 14 . 1 20 . . Kinetic 2040 | . 212 96 1365 367 . . Thermal 1090 | . 1063 27 . . . . Explosive 174 | . 60 111 . . 3 . Electromagnetic . | . . . . . . . Impact . | . . . . . . . Slashing 154 | . . . . . 154 . Piercing . | . . . . . . . Highest Corruption . | . . . . . . . Average Corruption . | . . . . . . . Corruption Purged . | . . . . . . . Corruption Blocked . | . . . . . . . Overload Shots . | . . . . . . . Overflow Damage 24 | . . 24 . . . . Projectiles . | . . . . . . . Explosions 24 | . . 24 . . . . Melee . | . . . . . . . Knockbacks 23 | . 1 . 22 . . . Impact . | . . . . . . . Kinetic 21 | . 1 . 20 . . . Secondary 2 | . . . 2 . . . Self-Inflicted Damage 41 | . . 29 . . 12 . Shots 2 | . . 1 . . 1 . Rammed 5 | . 2 . 1 2 . . Targets Rammed 6 | . 2 . 1 3 . . Kicked . | . . . . . . . Crushed 1 | . . . . 1 . . Highest Temperature 312 | . 312 . 6 . . . Average Temperature 58 | . 59 . 5 . . . Received Heat Transfer 519 | . 303 . 180 36 . . Siege Activations . | . . . . . . . Martial Activations . | . . . . . . . Shielding Activations . | . . . . . . . Robots Disrupted . | . . . . . . . Combat Hostiles . | . . . . . . . Robots Corrupted . | . . . . . . . Combat Hostiles . | . . . . . . . Parts Fried . | . . . . . . . Impact Corruptions . | . . . . . . . Robots Melted 1 | . 1 . . . . . Combat Hostiles 1 | . 1 . . . . . Parts Melted 8 | . 7 . 1 . . . Heat Transferred 3219 | . 3145 74 . . . . Parts Sabotaged . | . . . . . . . Parts Stolen . | . . . . . . . Parts Stripped . | . . . . . . . Power Chain Reactions . | . . . . . . . Alert | -11 -10 -10 -9 -9 -9 -8 ------- Run | Yrd Mat Min Mat Min Exi Min Maximum Alert Level 1 | . . . 1 . . . Low Security (%) 90 | 100 100 100 59 100 . 100 Level 1 9 | . . . 40 . . . Level 2 . | . . . . . . . Level 3 . | . . . . . . . Level 4 . | . . . . . . . Level 5 . | . . . . . . . High Security . | . . . . . . . Max Security . | . . . . . . . Peak Influence 274 | . 90 78 274 118 . . Initial 68 | . . . . 68 . . Average 55 | . 31 16 162 28 . . Influence Increases 2011 | . 481 206 626 155 543 . Destroy 0b10 Robot/C 1400 | . 280 160 400 120 440 . Destroy 0b10 Robot/NC 100 | . 40 . 45 15 . . Destroy Leader 228 | . 70 30 108 20 . . Allied During Kill 135 | . . 8 24 . 103 . Successful Hack 48 | . 30 . 18 . . . Disable Machine 15 | . 15 . . . . . Destroy Structure 25 | . 16 8 1 . . . Partial Spotted 15 | . . . 15 . . . Lose Combat Pursuer 45 | . 30 . 15 . . . Influence Decreases 2011 | . 478 209 450 331 152 391 Entered New Map 502 | . . 3 . 108 . 391 Time Decay 1281 | . 388 188 390 223 92 . Lost Part 28 | . 10 18 . . . . Lost Ally 120 | . . . 60 . 60 . Purge Threat 80 | . 80 . . . . . Squads Dispatched 5 | . 2 . 3 . . . Investigation 1 | . 1 . . . . . Extermination . | . . . . . . . Reinforcement 4 | . 1 . 3 . . . Assault . | . . . . . . . Garrison . | . . . . . . . Intercept . | . . . . . . . Searches Triggered . | . . . . . . . Construction Impeded . | . . . . . . . Haulers Reinforced . | . . . . . . . Active Scanning Responses . | . . . . . . . Cargo Convoy Interrupts . | . . . . . . . Stealth | -11 -10 -10 -9 -9 -9 -8 --------- Run | Yrd Mat Min Mat Min Exi Min Distress Signals 5 | . 1 1 3 . . . Communications Jammed . | . . . . . . . Distress Signals . | . . . . . . . Times Spotted 76 | . 26 6 37 6 1 . Peak Tracking Total 6 | . 3 3 6 3 2 . Tactical Retreats 3 | . 2 . 1 . . . Traps | -11 -10 -10 -9 -9 -9 -8 ------- Run | Yrd Mat Min Mat Min Exi Min Traps Triggered . | . . . . . . . Indirectly . | . . . . . . . Trap Hack Attempts . | . . . . . . . Triggered . | . . . . . . . Disarmed . | . . . . . . . Reprogrammed . | . . . . . . . Reused . | . . . . . . . Traps Extracted . | . . . . . . . Installed . | . . . . . . . Triggered . | . . . . . . . Most Traps Carried 2 | . . . . 2 2 2 Machines | -11 -10 -10 -9 -9 -9 -8 ---------- Run | Yrd Mat Min Mat Min Exi Min Machines Disabled 2 | . 1 . . . 1 . Max in Single Turn 1 | . 1 . . . 1 . Machines Repaired . | . . . . . . . Machines Dismantled . | . . . . . . . Machines Sabotaged . | . . . . . . . Overloaded Fab Kills . | . . . . . . . Hacking | -11 -10 -10 -9 -9 -9 -8 --------- Run | Yrd Mat Min Mat Min Exi Min Machines Accessed 15 | . 7 . 6 1 1 . Terminals 11 | . 6 . 5 . . . Fabricators . | . . . . . . . Repair Stations 2 | . 1 . 1 . . . Recycling Units . | . . . . . . . Scanalyzers . | . . . . . . . Garrison Access . | . . . . . . . Total Hacks 54 | . 32 . 20 1 1 . Successful 38 | . 21 . 15 1 1 . Failed 16 | . 11 . 5 . . . Catastrophic 2 | . . . 2 . . . Database Lockouts . | . . . . . . . Manual 32 | . 19 . 12 . 1 . Terminals 43 | . 27 . 16 . . . Fabricators . | . . . . . . . Repair Stations 9 | . 5 . 4 . . . Recycling Units . | . . . . . . . Scanalyzers . | . . . . . . . Garrison Access . | . . . . . . . Terminal Hacks 14 | . 9 . 3 1 1 . Robot Analysis 2 | . 2 . . . . . Open Door 1 | . . . . 1 . . Emergency Access Points 1 | . . . 1 . . . Terminal Index 1 | . 1 . . . . . Unreport Threat 1 | . 1 . . . . . Locate Traps 1 | . 1 . . . . . Recall Investigation 1 | . 1 . . . . . Recall Reinforcements 1 | . 1 . . . . . Hauler Manifests 1 | . . . 1 . . . Zone Layout 3 | . 2 . 1 . . . Proto ID Catalog 1 | . . . . . 1 . Fabricator Hacks . | . . . . . . . Repair Station Hacks 7 | . 3 . 4 . . . Scan Component 4 | . 2 . 2 . . . Repair 3 | . 1 . 2 . . . Recycling Unit Hacks . | . . . . . . . Scanalyzer . | . . . . . . . Garrison Access Hacks . | . . . . . . . Unauthorized Hacks 17 | . 9 . 8 . . . Terminals 17 | . 9 . 8 . . . Track 1 | . . . 1 . . . Botnet 4 | . 2 . 2 . . . Disrupt 1 | . . . 1 . . . Operators 1 | . 1 . . . . . Skim 10 | . 6 . 4 . . . Fabricators . | . . . . . . . Repair Stations . | . . . . . . . Recycling Units . | . . . . . . . Scanalyzers . | . . . . . . . Garrison Access . | . . . . . . . Data Cores Recovered . | . . . . . . . Used . | . . . . . . . Hacking Detections 10 | . 6 . 4 . . . Full Trace Events 1 | . 1 . . . . . Feedback Events . | . . . . . . . Feedback Blocked . | . . . . . . . Robot Schematics Acquired . | . . . . . . . Robots Built . | . . . . . . . Authchips . | . . . . . . . Time . | . . . . . . . Total Robot Build Rating . | . . . . . . . Part Schematics Acquired . | . . . . . . . Parts Built . | . . . . . . . Authchips . | . . . . . . . Time . | . . . . . . . Total Part Build Rating . | . . . . . . . Part Studies Acquired . | . . . . . . . Parts Repaired 3 | . 1 . 2 . . . Time 78 | . 26 . 52 . . . Parts Recycled . | . . . . . . . Recycled Matter . | . . . . . . . Retrieved Matter . | . . . . . . . Retrieved Components . | . . . . . . . Parts Scanalyzed . | . . . . . . . Part Schematics Acquired . | . . . . . . . Parts Damaged . | . . . . . . . Bothacking | -11 -10 -10 -9 -9 -9 -8 ------------ Run | Yrd Mat Min Mat Min Exi Min Used RIF Installer . | . . . . . . . Robots Hacked . | . . . . . . . Non-combat . | . . . . . . . Combat . | . . . . . . . Robot Hacks Applied . | . . . . . . . Relay Couplers Released . | . . . . . . . Fabnet Peak Effective % . | . . . . . . . Robots Rewired . | . . . . . . . Allies Hacked . | . . . . . . . Hacks Repelled . | . . . . . . . Allies | -11 -10 -10 -9 -9 -9 -8 -------- Run | Yrd Mat Min Mat Min Exi Min Total Allies 5 | . . 4 . 1 . . Largest Group 4 | . . 4 3 1 . . Highest-Rated Group 71 | . . 71 40 31 . . Highest-Rated Ally 31 | . . 31 16 31 . . Total Orders . | . . . . . . . Ally Attacks 130 | . . 11 27 . 92 . Total Damage 5241 | . . 116 344 . 4781 . Kills 35 | . . 2 9 . 24 . Allies Corrupted . | . . . . . . . Allies Melted . | . . . . . . . Turrets Deployed 3 | . . . . . 3 . Intel | -11 -10 -10 -9 -9 -9 -8 ------- Run | Yrd Mat Min Mat Min Exi Min Active Infowar (turns) 1595 | . 493 . 1047 55 . . Optics 1102 | . . . 1047 55 . . T.N.C. 493 | . 493 . . . . . Robot Analysis Total 2 | . 2 . . . . . Derelict Logs Recovered 3 | . . 2 . 1 . . Drone Launches . | . . . . . . . Drone Recoveries . | . . . . . . . Exploration | -11 -10 -10 -9 -9 -9 -8 ------------- Run | Yrd Mat Min Mat Min Exi Min Turns Passed 6054 | 64 1653 921 1081 910 1228 197 Spaces Moved 2728 | 52 753 541 446 469 467 . Core 27 | 27 . . . . . . Treads 2701 | 25 753 541 446 469 467 . Legs . | . . . . . . . Wheels . | . . . . . . . Hover . | . . . . . . . Flight . | . . . . . . . Fastest Speed 50 | 50 160 160 160 160 160 . Average Speed 159 | 102 160 160 160 161 160 . Slowest Speed 240 | 160 160 160 160 240 160 . Overloaded Moves . | . . . . . . . Propulsion Burnouts . | . . . . . . . Robots Hopped . | . . . . . . . Potential Cave-ins . | . . . . . . . Cave-ins Triggered . | . . . . . . . Exploration Rate (%) 56 | 5 91 94 47 94 62 3 Regions Visited 6 Branch Regions 4 Pre-discovered Areas 1 | . . . . 1 . . Known Exits Taken . | . . . . . . . Unknown Exits Taken 6 | 1 1 1 1 1 1 . Scrap Searched 4 | . . 3 . 1 . . Spaces Dug 18 | . 10 8 . . . . Terrain Destroyed 24 | . 10 8 . . 6 . Melee . | . . . . . . . Projectile . | . . . . . . . AOE 24 | . 10 8 . . 6 . Terrain Rammed . | . . . . . . . Walls Destroyed . | . . . . . . . Machines Disabled . | . . . . . . . Actions | -11 -10 -10 -9 -9 -9 -8 --------- Run | Yrd Mat Min Mat Min Exi Min Total 4136 | 62 1068 575 696 585 953 197 Wait 1044 | . 217 17 123 72 418 197 Move 2722 | 51 752 540 445 468 466 . Hop . | . . . . . . . Pick Up 80 | 5 19 1 21 5 29 . Fast Attach 5 | 1 2 . 1 1 . . Attach 17 | 5 2 2 3 . 5 . Detach 2 | . . . 1 . 1 . Swap 41 | . 6 1 24 9 1 . Drop 54 | . 2 . 16 9 27 . Fire 160 | . 66 14 61 18 1 . Melee 5 | . . . . . 5 . Ram . | . . . . . . . Kick . | . . . . . . . Crush 6 | . 2 . 1 3 . . Escape Stasis . | . . . . . . . Rewire . | . . . . . . . Trap . | . . . . . . . Miscellaneous . | . . . . . . . Route ------- -11/Scrapyard -10/Materials (discovered 6 exits: *Mat x3 / [*Min x2] / [*Sub]) -10/Mines (discovered 2 exits: *Mat x2) -9/Materials (discovered 3 exits: *Mat x2 / *Min) -9/Mines (discovered 3 exits: *Mat / *Exi / [*Zio]) -9/Exiles (discovered 2 exits: [*Min x2]) -8/Mines History --------- Turn | Location | Event 34 | -11/Scrapyard | Discovered new exit (range 12) 65 | -11/Scrapyard | Entered Materials 290 | -10/Materials | Discovered new exit (range 13) 314 | -10/Materials | Build established: Mutant 394 | -10/Materials | Discovered new exit (range 8) 515 | -10/Materials | Discovered new exit (range 6) 782 | -10/Materials | Discovered new exit (range 14) 1129 | -10/Materials | Repaired Lgt. Treads 1193 | -10/Materials | Discovered new exit (range 15) 1365 | -10/Materials | Derelicts attacked the area 1679 | -10/Materials | Discovered new exit (range 11) 1718 | -10/Materials | Entered Mines 1898 | -10/Mines | Discovered new exit (range 12) 1925 | -10/Mines | Received a Mining Laser from a helpful Derelict 2012 | -10/Mines | Assisted by bots powering up and referring to "LRC-V3" 2094 | -10/Mines | Learned 2 Materials zone layouts 2130 | -10/Mines | Assembled infested the area 2335 | -10/Mines | A weapon hastily lodged in a ceiling crevice suddenly fell to the ground 2623 | -10/Mines | Discovered new exit (range 5) 2639 | -10/Mines | Entered Materials 2639 | -9/Materials | Accompanied by 3 allies 2639 | -9/Materials | Evolved 2 slots: Propulsion x1, Utility x1 2640 | -9/Materials | Identified exit to Materials 3179 | -9/Materials | Build established: Scavenger-Mutant 3219 | -9/Materials | Discovered new exit (range 8) 3460 | -9/Materials | Repaired Lgt. Treads 3487 | -9/Materials | Repaired Lgt. Treads 3493 | -9/Materials | Discovered exit to Materials (range 16) 3720 | -9/Materials | Entered Mines 3735 | -9/Mines | Discovered exit to Materials (range 6) 3945 | -9/Mines | Found a hidden stash of uninstalled traps 4062 | -9/Mines | A Derelict revealed a hidden shortcut to a safe place 4116 | -9/Mines | Learned location of Zion (-7) 4286 | -9/Mines | Escorted by a lone wolf Derelict 4472 | -9/Mines | Met a Derelict who couldn't figure out how to use a Trap Extractor 4624 | -9/Mines | Deemed a non-threat by the Exiles lab entrance 4624 | -9/Mines | Discovered new exit (range 5) 4630 | -9/Mines | Entered Exiles 4651 | -9/Exiles | Discovered new exit (range 15) 4669 | -9/Exiles | Met 8R-AWN 4698 | -9/Exiles | Met EX-HEX 4758 | -9/Exiles | Met EX-DEC 5034 | -9/Exiles | Met EX-BIN 5056 | -9/Exiles | Aligned with FarCom system 5058 | -9/Exiles | Given EX-Vault access code 5094 | -9/Exiles | Opened EX-Vault 5112 | -9/Exiles | Found Deploy-a-Sentry 5115 | -9/Exiles | Found Deploy-a-Sentry 5117 | -9/Exiles | Found Deploy-a-Sentry 5150 | -9/Exiles | Warned to stay clear of 0b10 Research branches 5162 | -9/Exiles | Exiles lab attacked by MAIN.C 5240 | -9/Exiles | DAS Turret deployed 5243 | -9/Exiles | DAS Turret deployed 5247 | -9/Exiles | DAS Turret deployed 5315 | -9/Exiles | Attacked by the Exiles 5333 | -9/Exiles | Allies destroyed 8R-AWN 5341 | -9/Exiles | Discovered new exit (range 10) 5858 | -9/Exiles | Entered Mines 6055 | -8/Mines | Self-destructed Last Messages --------------- 05832_ Slug penetrates Wall. 05833_ H-55 Commando knocked back. 05835_ Slug penetrates DAS Turret. 05835_ DAS Turret destroyed. 05841_ Slug penetrates DAS Turret. 05842_ H-55 Commando knocked back. 05844_ Slug penetrates DAS Turret. 05846_ Destroyed Carbon-fiber Leg. 05846_ H-55 Commando knocked back. 05847_ Slug penetrates DAS Turret. 05848_ DAS Turret suffers critical hit (Smash). 05848_ DAS Turret system corrupted by crushing effect. 05851_ DAS Turret suffers critical hit (Smash). 05851_ DAS Turret destroyed. LOCATION=UNKNOWN GOAL=ESCAPE 05859_ K-01 Serf collects debris. 05883_ K-01 Serf cleans the Pulverizer. 05884_ K-01 Serf collects debris. Map ----- +----------------------------------------------------+ | | | | | | | | | | | | | | | | | | | | | | | | | | | | | | | | | | | | | | | | | | | ?????????????????????????????????????????????????? | | ???????????????????????#########?????????????????? | | ???????????????????????# #?????????????????? | | ???????????????????????# """#?????????????????? | | ???????????????????????# @ """#?????????????????? | | ???????????????????? """#?????????????????? | | ????????????????"" # # """#?????????????????? | | ????????????? ??#?# #?????????????????? | | ?????????????###???????## #####?????????????????? | | ????????????????????????# #?????????????????????? | | ????????????????????????# #?????????????????????? | | ????????????????????????# #?????????????????????? | | ????????????????????????# #?????????????????????? | | ????????????????????????? #?????????????????????? | | ????????????????????????? #?????????????????????? | | ????????????????????????? ?????????????????????? | | ?????????????????????????###?????????????????????? | | ?????????????????????????????????????????????????? | | ?????????????????????????????????????????????????? | | ?????????????????????????????????????????????????? | | ?????????????????????????????????????????????????? | | ?????????????????????????????????????????????????? | | ?????????????????????????????????????????????????? | | ?????????????????????????????????????????????????? | | ?????????????????????????????????????????????????? | | ?????????????????????????????????????????????????? | | ?????????????????????????????????????????????????? | | ?????????????????????????????????????????????????? | | ?????????????????????????????????????????????????? | +----------------------------------------------------+ Best States ------------- Heat Dissipation 42 Energy Generation 12 Energy Capacity 265 Matter Stores 300 Matter Capacity 300 Sight Range 20 Terrain Scan Density 10 Armor Coverage 450 Evasion (%) 50 Recoil Reduction 3 Trap Extractor Capacity 6 Item Schematics ----------------- None Robot Schematics ------------------ None Fabricated ------------ Nothing Repaired ---------- Lgt. Treads | 25% | -10/Materials Lgt. Treads | 15% | -9/Materials Lgt. Treads | 41% | -9/Materials Studied --------- None Alien Tech Used ----------------- None Achievements -------------- None Challenges ------------ None Game ------ Seed DisruptorLightpackMask Manual? 0 Play Time 00:41:15 Cumulative 120.8 hours Start 2026.04.19 @ 10:08:16 End 2026.04.19 @ 17:37:49 Sessions 3 Manual Loads 0 Difficulty Rogue Special Mode None Game No. 89 Rogue 89 Adventurer 0 Explorer 0 Win Type - Total 1 Types 0/0/0/1/0/0/0/0/0/0 Lore% 46 Gallery% 53 Achievement% 50 Wizard Run 0 Options --------- Layout 2 ASCII 0 Keyboard 0 Movement Mouse Keybinds 0 Fullscreen 1 Font 48/Smallcaps Map View 50x44 Zoom Use 0% Tactical HUD 1 Map Filters NONE Filters NONE Steam 1 RUN: c3942d1b-c7ac-41f2-b5b7-5162cefe4a29